fUSD/lending_fUSD_20251210
["ID","MTS","AMOUNT","RATE_DAILY","PERIOD"]
[398136062,1765396646638,-25000.0,0.00041532,2]
[398136063,1765396647697,-25000.0,0.00041532,2]
[398136064,1765396648785,-9059.00030524,0.00041432,15]
[398136065,1765396648814,-15940.99969476,0.00041532,2]
[398136066,1765396650624,-25000.0,0.00041532,2]
[398136067,1765396651959,-25000.0,0.00041532,2]
[398136068,1765396653127,-9059.00030522,0.00041443,15]
[398136069,1765396653160,-15940.99969478,0.00041532,2]
[398136070,1765396654403,-25000.0,0.00041432,2]
[398136077,1765397021074,271.15,0.00013699,2]
[398136078,1765397077979,-179.07205441,0.00020187,2]
[398136091,1765397431336,-92.07794559,0.00020187,2]
[398136092,1765397431348,-193.0,0.00020208,2]
[398136093,1765397431358,-365.44477609,0.00020228,2]
[398136094,1765397431368,-372.63860747,0.00020269,2]
[398136095,1765397431388,-230.00139253,0.00020269,2]
[398136096,1765397431399,-202.65042616,0.00020269,2]
[398136097,1765397431408,-602.64,0.00021336,2]
[398136098,1765397431418,-250.0,0.00022206,2]
[398136099,1765397431428,-193.0,0.00022206,2]
[398136100,1765397431438,-276.4744073,0.00022206,2]
[398136101,1765397431463,-18.9856539,0.00022403,2]
[398136102,1765397431477,-583.6543461,0.00022403,2]
[398136103,1765397431488,-602.64,0.0002347,2]
[398136104,1765397431498,-602.64,0.00024536,2]
[398136105,1765397431509,-161.99068166,0.00025503,50]
[398136106,1765397431519,-602.64,0.00025603,2]
[398136107,1765397431532,-1200.0,0.00026669,2]
[398136108,1765397431542,-300.0,0.00026669,2]
[398136109,1765397431553,-999.99,0.0002667,2]
[398136110,1765397431564,-1015.54497224,0.0002667,2]
[398136111,1765397431576,-338.87,0.0002667,2]
[398136112,1765397431588,-3673.29706504,0.0002667,2]
[398136113,1765397431604,-705.67533422,0.0002667,2]
[398136114,1765397431619,-540.44064801,0.0002667,2]
[398136115,1765397431632,-3726.16198049,0.0002667,2]
[398136116,1765397431642,-150.99,0.0002667,2]
[398136117,1765397431653,-9999.99,0.0002667,2]
[398136118,1765397431665,-602.64,0.0002667,2]
[398136120,1765397431677,-271.15,0.00026676,2]
[398136122,1765397431688,-255.0,0.00027533,2]
[398136124,1765397431701,-260.0,0.00027588,2]
[398136126,1765397431712,-161.99068164,0.00027638,55]
[398136128,1765397431724,-303.0,0.00027643,2]
[398136130,1765397431734,-497.0,0.00027698,2]
[398136132,1765397431745,-602.64,0.00027737,2]
[398136134,1765397431755,-2.58571084,0.00027753,2]
[398136137,1765397431768,-284.41428916,0.00027753,2]
[398136139,1765397431781,-385.0,0.00027808,2]
[398136141,1765397431791,-602.64,0.00028804,2]
[398136143,1765397431802,-480.0,0.0002897,2]
[398136145,1765397431816,-161.99068164,0.00029774,60]
[398136148,1765397431829,-602.64,0.0002987,2]
[398136150,1765397431839,-602.64,0.00030937,2]
[398136152,1765397431850,-161.99068164,0.00031909,65]
[398136154,1765397431861,-602.64,0.00032004,2]
[398136156,1765397431871,-602.64,0.00033071,2]
[398136158,1765397431882,-271.15,0.00033165,2]
[398136160,1765397431892,-786.73,0.0003404,30]
[398136162,1765397431903,-500.0,0.0003404,2]
[398136164,1765397431915,-200.0,0.0003404,2]
[398136166,1765397431925,-161.99068164,0.00034044,70]
[398136168,1765397431936,-99.25835537,0.00034138,2]
[398136171,1765397431948,-503.38164463,0.00034138,2]
[398136173,1765397431958,-29.96475936,0.00034295,2]
[398136175,1765397431970,-652.30130565,0.00034295,2]
[398136177,1765397431982,-380.79749567,0.00034295,2]
[398136181,1765397432002,-500.0,0.00034295,2]
[398136183,1765397432014,-835.60817854,0.00034295,2]
[398136185,1765397432029,-265.84703492,0.00034295,2]
[398136195,1765397437399,-1782.59122586,0.00034295,2]
[398136196,1765397437410,-5739.81,0.00034473,2]
[398136197,1765397437420,-7000.47,0.00034686,2]
[398136198,1765397437431,-602.64,0.00035204,2]
[398136199,1765397437441,-185.24,0.0003541,2]
[398136200,1765397437451,-1852.42,0.00035727,2]
[398136201,1765397437460,-161.99068164,0.00036179,75]
[398136202,1765397437470,-602.64,0.00036271,2]
[398136203,1765397437479,-166.66,0.00036554,2]
[398136204,1765397437489,-226.03101544,0.00036805,10]
[398136205,1765397437499,-601.99,0.00037049,2]
[398136206,1765397437508,-602.64,0.00037338,2]
[398136207,1765397437518,-150.0,0.00037455,7]
[398136208,1765397437527,-150.00000001,0.00037455,7]
[398136209,1765397437538,-253.0,0.0003803,2]
[398136210,1765397437548,-151.80375574,0.00038131,2]
[398136211,1765397437558,-1346.76,0.00038154,2]
[398136212,1765397437568,-161.99068164,0.00038315,80]
[398136213,1765397437578,-602.64,0.00038405,2]
[398136214,1765397437588,-1323.258,0.00038405,51]
[398136215,1765397437598,-786.73,0.00038875,120]
[398136216,1765397437608,-500.0,0.00038986,2]
[398136217,1765397437619,-602.64,0.00039472,2]
[398136218,1765397437630,-271.15,0.00039654,2]
[398136219,1765397437640,-500.0,0.00040211,14]
[398136220,1765397437650,-500.0,0.00040211,30]
[398136221,1765397437661,-500.0,0.00040437,31]
[398136222,1765397437670,-318.11140664,0.00040437,31]
[398136223,1765397437680,-500.0,0.00040437,31]
[398136224,1765397437689,-557.30277363,0.00040437,31]
[398136225,1765397437699,-358.71792152,0.00040437,31]
[398136226,1765397437709,-897.5754,0.00040438,2]
[398136227,1765397437719,-74752.6633,0.00040438,2]
[398136229,1765397437728,-983.605,0.00040438,2]
[398136231,1765397437738,-161.99068164,0.0004045,85]
[398136232,1765397437747,-602.64,0.00040538,2]
[398136234,1765397437757,-74582.68435262,0.00040538,30]
[398136235,1765397437769,-656.1195813,0.00040538,30]
[398136236,1765397437782,-557.79952884,0.00040538,30]
[398136238,1765397437798,-20193.39653724,0.00040538,30]
[398136239,1765397437808,-244.02,0.0004055,2]
[398136240,1765397437817,-500.0,0.00040999,30]
[398136241,1765397437827,-500.0,0.00041094,2]
[398136242,1765397437837,-500.0,0.00041095,60]
[398136243,1765397437848,-500.0,0.00041095,60]
[398136244,1765397437858,-502.48446168,0.00041095,60]
[398136245,1765397437868,-500.0,0.00041095,60]
[398136246,1765397437878,-500.0,0.00041095,60]
[398136247,1765397437888,-500.0,0.00041095,60]
[398136249,1765397437897,-500.0,0.00041095,60]
[398136250,1765397437907,-500.0,0.00041095,60]
[398136251,1765397437917,-500.0,0.00041095,60]
[398136252,1765397437926,-500.0,0.00041095,60]
[398136253,1765397437936,-500.0,0.00041095,60]
[398136254,1765397437946,-500.0,0.00041095,60]
[398136255,1765397437955,-500.0,0.00041095,60]
[398136256,1765397437965,-500.0,0.00041095,60]
[398136257,1765397437974,-204.93839366,0.00041095,60]
[398136258,1765397437984,-500.0,0.00041095,60]
[398136259,1765397437993,-500.0,0.00041095,60]
[398136260,1765397438003,-500.0,0.00041095,60]
[398136261,1765397438012,-500.0,0.00041095,60]
[398136262,1765397438022,-500.0,0.00041095,60]
[398136263,1765397438033,-500.0,0.00041095,60]
[398136264,1765397438044,-500.0,0.00041095,60]
[398136265,1765397438055,-500.0,0.00041095,60]
[398136266,1765397438065,-683.26,0.00041095,60]
[398136267,1765397438076,-500.0,0.00041095,60]
[398136268,1765397438086,-152.54,0.00041095,2]
[398136269,1765397438097,-150.72,0.00041095,2]
[398136270,1765397438107,-151.3,0.00041095,2]
[398136271,1765397438116,-152.0,0.00041095,2]
[398136272,1765397438126,-564.1745337,0.00041369,30]
[398136273,1765397438135,-591.54575894,0.000414,30]
[398136274,1765397438145,-1000.0,0.00041403,2]
[398136275,1765397438155,-2500.0,0.00041417,2]
[398136276,1765397438164,-7247.20024423,0.0004143,15]
[398136277,1765397438175,-252.52499329,0.00041432,2]
[398136278,1765397438184,-4028.01448625,0.00041432,2]
[398136279,1765397438194,-1000.0,0.00041432,2]
[398136280,1765397438203,-5000.0,0.00041434,120]
[398136281,1765397438213,-500.0,0.00041434,60]
[398136282,1765397438222,-500.0,0.00041434,60]
[398136283,1765397438232,-500.0,0.00041434,60]
[398136284,1765397438242,-500.0,0.00041434,60]
[398136285,1765397438252,-500.0,0.00041434,60]
[398136286,1765397438263,-500.0,0.00041434,60]
[398136287,1765397438273,-500.0,0.00041434,60]
[398136288,1765397438284,-508.39139857,0.00041434,60]
[398136289,1765397438294,-364.98964158,0.00041434,60]
[398136290,1765397438304,-500.0,0.00041434,60]
[398136291,1765397438315,-500.0,0.00041434,60]
[398136292,1765397438325,-500.0,0.00041434,60]
[398136293,1765397438335,-500.0,0.00041434,60]
[398136294,1765397438345,-500.0,0.00041434,60]
[398136295,1765397438355,-500.0,0.00041434,60]
[398136296,1765397438365,-7247.20024417,0.00041442,15]
[398136297,1765397438377,-7247.20024417,0.00041454,15]
[398136298,1765397438387,-7247.20024417,0.00041466,15]
[398136299,1765397438397,-10118.4008667,0.00041517,2]
[398136300,1765397438407,-4674.9174684,0.00041517,2]
[398136301,1765397438417,-315.24,0.00041519,2]
[398136302,1765397438427,-315.24,0.0004152,2]
[398136303,1765397438437,-315.24,0.0004152,2]
[398136304,1765397438448,-315.24,0.00041521,2]
[398136305,1765397438458,-315.24,0.00041522,2]
[398136306,1765397438468,-344.62695551,0.00041529,31]
[398136307,1765397438478,-500.0,0.00041529,31]
[398136308,1765397438489,-197.32839709,0.00041529,31]
[398136309,1765397438499,-500.0,0.00041529,31]
[398136310,1765397438509,-500.0,0.00041529,2]
[398136311,1765397438520,-683.26,0.00041529,60]
[398136312,1765397438529,-200.0,0.0004153,31]
[398136313,1765397438541,-207.4,0.0004153,31]
[398136314,1765397438551,-185.2,0.0004153,31]
[398136315,1765397438561,-200.0,0.0004153,31]
[398136316,1765397438571,-500.0,0.0004153,31]
[398136317,1765397438581,-200.0,0.0004153,31]
[398136318,1765397438592,-500.0,0.0004153,60]
[398136319,1765397438603,-500.0,0.0004153,60]
[398136320,1765397438613,-500.0,0.0004153,60]
[398136321,1765397438628,-600.0,0.0004153,120]
[398136322,1765397438638,-500.0,0.0004153,31]
[398136323,1765397438648,-151.0,0.0004153,31]
[398136324,1765397438658,-500.0,0.0004153,31]
[398136325,1765397438671,-500.0,0.0004153,31]
[398136326,1765397438681,-156.587,0.0004153,31]
[398136327,1765397438692,-500.0,0.0004153,31]
[398136328,1765397438702,-500.0,0.0004153,31]
[398136329,1765397438713,-250.0,0.0004153,31]
[398136330,1765397438723,-520.0,0.0004153,31]
[398136331,1765397438733,-500.0,0.0004153,31]
[398136332,1765397438744,-414.0,0.0004153,31]
[398136333,1765397438756,-500.0,0.0004153,31]
[398136334,1765397438766,-162.380719,0.0004153,31]
[398136335,1765397438777,-500.0,0.0004153,31]
[398136336,1765397438790,-500.0,0.0004153,31]
[398136337,1765397438800,-539.24,0.0004153,31]
[398136338,1765397438810,-500.0,0.0004153,31]
[398136339,1765397438820,-429.318,0.0004153,31]
[398136340,1765397438830,-250.0,0.0004153,31]
[398136341,1765397438840,-500.0,0.0004153,31]
[398136342,1765397438850,-168.3888056,0.0004153,31]
[398136343,1765397438860,-151.0,0.0004153,31]
[398136344,1765397438871,-500.0,0.0004153,31]
[398136345,1765397438882,-151.0,0.0004153,31]
[398136346,1765397438892,-500.0,0.0004153,31]
[398136347,1765397438902,-500.0,0.0004153,31]
[398136348,1765397438912,-445.202766,0.0004153,31]
[398136349,1765397438922,-250.0,0.0004153,31]
[398136350,1765397438932,-559.19188,0.0004153,31]
[398136351,1765397438942,-500.0,0.0004153,31]
[398136352,1765397438953,-174.61919141,0.0004153,31]
[398136353,1765397438963,-151.0,0.0004153,31]
[398136354,1765397438973,-1000.0,0.0004153,31]
[398136355,1765397438983,-500.0,0.0004153,31]
[398136356,1765397438993,-151.0,0.0004153,31]
[398136357,1765397439003,-500.0,0.0004153,31]
[398136358,1765397439013,-250.0,0.0004153,31]
[398136359,1765397439023,-500.0,0.0004153,31]
[398136360,1765397439034,-461.67526834,0.0004153,31]
[398136361,1765397439044,-579.88197956,0.0004153,31]
[398136362,1765397439053,-500.0,0.0004153,31]
[398136363,1765397439063,-181.08010149,0.0004153,31]
[398136364,1765397439072,-151.0,0.0004153,31]
[398136365,1765397439081,-1000.0,0.0004153,31]
[398136366,1765397439091,-250.0,0.0004153,31]
[398136367,1765397439100,-500.0,0.0004153,31]
[398136368,1765397439110,-151.0,0.0004153,31]
[398136369,1765397439119,-500.0,0.0004153,31]
[398136370,1765397439128,-500.0,0.0004153,31]
[398136371,1765397439138,-250.0,0.0004153,31]
[398136372,1765397439147,-478.75725327,0.0004153,31]
[398136374,1765397439157,-601.3376128,0.0004153,31]
[398136375,1765397439167,-500.0,0.0004153,31]
[398136376,1765397439178,-187.78006525,0.0004153,31]
[398136377,1765397439188,-151.0,0.0004153,31]
[398136378,1765397439199,-1000.0,0.0004153,31]
[398136379,1765397439210,-160.0,0.0004153,31]
[398136380,1765397439221,-250.0,0.0004153,31]
[398136381,1765397439231,-500.0,0.0004153,31]
[398136382,1765397439241,-151.0,0.0004153,31]
[398136383,1765397439252,-220.0,0.0004153,31]
[398136384,1765397439262,-500.0,0.0004153,31]
[398136385,1765397439272,-496.47127164,0.0004153,31]
[398136386,1765397439283,-623.58710448,0.0004153,31]
[398136387,1765397439294,-500.0,0.0004153,31]
[398136388,1765397439303,-194.72792766,0.0004153,31]
[398136389,1765397439313,-250.0,0.0004153,31]
[398136390,1765397439322,-151.0,0.0004153,31]
[398136391,1765397439332,-1000.0,0.0004153,31]
[398136392,1765397439342,-160.0,0.0004153,31]
[398136393,1765397439352,-250.0,0.0004153,31]
[398136394,1765397439362,-500.0,0.0004153,31]
[398136396,1765397439371,-151.0,0.0004153,31]
[398136397,1765397439381,-500.0,0.0004153,31]
[398136398,1765397439391,-514.84070869,0.0004153,31]
[398136399,1765397439400,-646.65982735,0.0004153,31]
[398136400,1765397439410,-500.0,0.0004153,31]
[398136401,1765397439419,-220.0,0.0004153,31]
[398136402,1765397439429,-251.50322381,0.0004153,31]
[398136403,1765397439438,-250.0,0.0004153,31]
[398136404,1765397439448,-151.0,0.0004153,31]
[398136406,1765397439458,-1000.0,0.0004153,31]
[398136407,1765397439467,-160.0,0.0004153,31]
[398136408,1765397439477,-250.0,0.0004153,31]
[398136409,1765397439487,-500.0,0.0004153,31]
[398136410,1765397439496,-151.0,0.0004153,31]
[398136411,1765397439506,-533.88981491,0.0004153,31]
[398136412,1765397439515,-500.0,0.0004153,31]
[398136413,1765397439525,-220.9769057,0.0004153,31]
[398136414,1765397439537,-151.0,0.0004153,31]
[398136415,1765397439546,-1000.0,0.0004153,31]
[398136416,1765397439556,-160.0,0.0004153,31]
[398136417,1765397439565,-250.0,0.0004153,31]
[398136418,1765397439574,-151.0,0.0004153,31]
[398136419,1765397439584,-500.0,0.0004153,31]
[398136420,1765397439593,-500.0,0.0004153,31]
[398136421,1765397439603,-553.64373807,0.0004153,31]
[398136422,1765397439612,-500.0,0.0004153,31]
[398136423,1765397439623,-151.0,0.0004153,31]
[398136424,1765397439638,-1000.0,0.0004153,31]
[398136425,1765397439649,-160.0,0.0004153,31]
[398136426,1765397439658,-250.0,0.0004153,31]
[398136427,1765397439667,-500.0,0.0004153,31]
[398136428,1765397439678,-500.0,0.0004153,31]
[398136429,1765397439687,-500.0,0.0004153,31]
[398136430,1765397439697,-151.0,0.0004153,31]
[398136431,1765397439708,-1000.0,0.0004153,31]
[398136432,1765397439717,-151.0,0.0004153,31]
[398136433,1765397439726,-160.0,0.0004153,31]
[398136434,1765397439735,-250.0,0.0004153,31]
[398136435,1765397439745,-500.0,0.0004153,31]
[398136436,1765397439754,-500.0,0.0004153,31]
[398136437,1765397439763,-500.0,0.0004153,31]
[398136438,1765397439773,-151.0,0.0004153,31]
[398136439,1765397439783,-1000.0,0.0004153,31]
[398136440,1765397439793,-160.0,0.0004153,31]
[398136441,1765397439803,-500.0,0.0004153,31]
[398136442,1765397439812,-151.0,0.0004153,31]
[398136443,1765397439822,-500.0,0.0004153,31]
[398136444,1765397439832,-500.0,0.0004153,31]
[398136445,1765397439841,-250.0,0.0004153,31]
[398136446,1765397439851,-151.0,0.0004153,31]
[398136447,1765397439860,-500.0,0.0004153,31]
[398136448,1765397439870,-500.0,0.0004153,31]
[398136449,1765397439879,-151.0,0.0004153,31]
[398136450,1765397439889,-500.0,0.0004153,31]
[398136451,1765397439898,-500.0,0.0004153,31]
[398136452,1765397439908,-250.0,0.0004153,31]
[398136453,1765397439917,-250.0,0.0004153,31]
[398136454,1765397439926,-151.0,0.0004153,31]
[398136455,1765397439935,-500.0,0.0004153,31]
[398136456,1765397439944,-500.0,0.0004153,31]
[398136457,1765397439954,-500.0,0.0004153,31]
[398136458,1765397439963,-151.0,0.0004153,31]
[398136459,1765397439973,-500.0,0.0004153,31]
[398136460,1765397439982,-250.0,0.0004153,31]
[398136461,1765397439992,-250.0,0.0004153,31]
[398136462,1765397440002,-151.0,0.0004153,31]
[398136463,1765397440011,-10000.0,0.0004153,31]
[398136464,1765397440020,-500.0,0.0004153,31]
[398136465,1765397440031,-500.0,0.0004153,31]
[398136466,1765397440040,-500.0,0.0004153,31]
[398136467,1765397440049,-73.05193114,0.0004153,31]
[398136468,1765397440066,-77.94806886,0.0004153,31]
[398136469,1765397440076,-500.0,0.0004153,31]
[398136470,1765397440085,-250.0,0.0004153,31]
[398136471,1765397440095,-250.0,0.0004153,31]
[398136472,1765397440105,-151.0,0.0004153,31]
[398136473,1765397440115,-210.36393114,0.0004153,31]
[398136474,1765397440126,-9789.63606886,0.0004153,31]
[398136475,1765397440136,-151.0,0.0004153,31]
[398136477,1765397440146,-500.0,0.0004153,31]
[398136478,1765397440155,-500.0,0.0004153,31]
[398136479,1765397440164,-500.0,0.0004153,31]
[398136480,1765397440174,-250.0,0.0004153,31]
[398136481,1765397440183,-250.0,0.0004153,31]
[398136482,1765397440192,-151.0,0.0004153,31]
[398136483,1765397440201,-151.0,0.0004153,31]
[398136484,1765397440210,-1000.0,0.0004153,31]
[398136485,1765397440220,-500.0,0.0004153,31]
[398136486,1765397440229,-10000.0,0.0004153,31]
[398136487,1765397440239,-500.0,0.0004153,31]
[398136488,1765397440248,-500.0,0.0004153,31]
[398136489,1765397440257,-500.0,0.0004153,31]
[398136490,1765397440266,-250.0,0.0004153,31]
[398136491,1765397440275,-151.0,0.0004153,31]
[398136492,1765397440286,-250.0,0.0004153,31]
[398136493,1765397440296,-151.0,0.0004153,31]
[398136494,1765397440305,-151.0,0.0004153,31]
[398136495,1765397440315,-1000.0,0.0004153,31]
[398136496,1765397440325,-500.0,0.0004153,31]
[398136497,1765397440334,-1694.00946224,0.0004153,31]
[398136498,1765397440378,-189.0,0.00037452,2]
[398136499,1765397440388,-204.75864082,0.00037527,2]
[398136500,1765397440399,-267.24135918,0.00037527,2]
[398136501,1765397440410,-479.47431379,0.0004153,31]
[398136502,1765397440421,-7826.51622397,0.0004153,31]
[398136503,1765397440431,-500.0,0.0004153,31]
[398136504,1765397440441,-500.0,0.0004153,31]
[398136505,1765397440451,-500.0,0.0004153,31]
[398136506,1765397440593,-250.0,0.0004153,31]
[398136507,1765397440603,-151.0,0.0004153,31]
[398136508,1765397440613,-151.0,0.0004153,31]
[398136509,1765397440623,-151.0,0.0004153,31]
[398136510,1765397440638,-250.0,0.0004153,31]
[398136511,1765397440648,-1000.0,0.0004153,31]
[398136512,1765397440657,-500.0,0.0004153,31]
[398136513,1765397440668,-10000.0,0.0004153,31]
[398136514,1765397440678,-500.0,0.0004153,31]
[398136515,1765397440687,-500.0,0.0004153,31]
[398136516,1765397440696,-250.0,0.0004153,31]
[398136517,1765397440706,-500.0,0.0004153,31]
[398136518,1765397440717,-151.0,0.0004153,31]
[398136519,1765397440728,-500.0,0.0004153,31]
[398136520,1765397440738,-151.0,0.0004153,31]
[398136521,1765397440748,-151.0,0.0004153,31]
[398136522,1765397440758,-1000.0,0.0004153,31]
[398136523,1765397440767,-250.0,0.0004153,31]
[398136524,1765397440777,-500.0,0.0004153,31]
[398136525,1765397440791,-10000.0,0.0004153,31]
[398136526,1765397440801,-500.0,0.0004153,31]
[398136527,1765397440811,-500.0,0.0004153,31]
[398136528,1765397440821,-250.0,0.0004153,31]
[398136529,1765397440831,-151.0,0.0004153,31]
[398136530,1765397440841,-151.0,0.0004153,31]
[398136531,1765397440851,-518.5,0.0004153,31]
[398136532,1765397440862,-1000.0,0.0004153,31]
[398136533,1765397440872,-151.0,0.0004153,31]
[398136534,1765397440881,-250.0,0.0004153,31]
[398136535,1765397440890,-45.1605607,0.0004153,31]
[398136536,1765397440908,-454.8394393,0.0004153,31]
[398136537,1765397440918,-10000.0,0.0004153,31]
[398136538,1765397440928,-500.0,0.0004153,31]
[398136539,1765397440937,-151.0,0.0004153,31]
[398136540,1765397440947,-1000.0,0.0004153,31]
[398136541,1765397440957,-537.6845,0.0004153,31]
[398136542,1765397440967,-250.0,0.0004153,31]
[398136543,1765397440977,-500.0,0.0004153,31]
[398136544,1765397440986,-10000.0,0.0004153,31]
[398136545,1765397440995,-500.0,0.0004153,31]
[398136546,1765397441005,-1000.0,0.0004153,31]
[398136547,1765397441015,-557.5788265,0.0004153,31]
[398136548,1765397441024,-500.0,0.0004153,31]
[398136549,1765397441035,-10000.0,0.0004153,31]
[398136550,1765397441045,-250.0,0.0004153,31]
[398136551,1765397441054,-578.20924308,0.0004153,31]
[398136552,1765397441063,-1000.0,0.0004153,31]
[398136553,1765397441072,-500.0,0.0004153,31]
[398136554,1765397441082,-250.0,0.0004153,31]
[398136555,1765397441091,-599.60298507,0.0004153,31]
[398136556,1765397441100,-1000.0,0.0004153,31]
[398136557,1765397441110,-500.0,0.0004153,31]
[398136558,1765397441119,-151.0,0.0004153,31]
[398136559,1765397441129,-250.0,0.0004153,31]
[398136560,1765397441138,-621.78829552,0.0004153,31]
[398136561,1765397441148,-500.0,0.0004153,31]
[398136562,1765397441157,-1000.0,0.0004153,31]
[398136563,1765397441167,-500.0,0.0004153,31]
[398136564,1765397441176,-151.0,0.0004153,31]
[398136565,1765397441186,-250.0,0.0004153,31]
[398136566,1765397441196,-1000.0,0.0004153,31]
[398136567,1765397441207,-500.0,0.0004153,31]
[398136568,1765397441217,-644.79446246,0.0004153,31]
[398136569,1765397441227,-900.0,0.0004153,31]
[398136570,1765397441237,-500.0,0.0004153,31]
[398136571,1765397441246,-151.0,0.0004153,31]
[398136572,1765397441256,-250.0,0.0004153,31]
[398136573,1765397441265,-500.0,0.0004153,31]
[398136574,1765397441275,-1000.0,0.0004153,31]
[398136575,1765397441285,-900.0,0.0004153,31]
[398136576,1765397441296,-745.65223616,0.0004153,31]
[398136577,1765397441305,-500.0,0.0004153,31]
[398136578,1765397441315,-600.0,0.0004153,31]
[398136579,1765397441325,-151.0,0.0004153,31]
[398136580,1765397441334,-250.0,0.0004153,31]
[398136581,1765397441345,-500.0,0.0004153,31]
[398136582,1765397441355,-1000.0,0.0004153,31]
[398136583,1765397441364,-900.0,0.0004153,31]
[398136584,1765397441374,-600.0,0.0004153,31]
[398136585,1765397441384,-151.0,0.0004153,31]
[398136586,1765397441393,-250.0,0.0004153,31]
[398136587,1765397441403,-500.0,0.0004153,31]
[398136588,1765397441413,-1000.0,0.0004153,31]
[398136589,1765397441422,-900.0,0.0004153,31]
[398136590,1765397441431,-600.0,0.0004153,31]
[398136591,1765397441440,-151.0,0.0004153,31]
[398136592,1765397441450,-250.0,0.0004153,31]
[398136593,1765397441459,-500.0,0.0004153,31]
[398136594,1765397441468,-900.0,0.0004153,31]
[398136595,1765397441478,-600.0,0.0004153,31]
[398136596,1765397441487,-1000.0,0.0004153,31]
[398136597,1765397441496,-250.0,0.0004153,31]
[398136598,1765397441505,-151.0,0.0004153,31]
[398136599,1765397441515,-500.0,0.0004153,31]
[398136600,1765397441524,-900.0,0.0004153,31]
[398136601,1765397441535,-600.0,0.0004153,31]
[398136602,1765397441544,-250.0,0.0004153,31]
[398136603,1765397441553,-500.0,0.0004153,31]
[398136604,1765397441563,-151.0,0.0004153,31]
[398136605,1765397441572,-900.0,0.0004153,31]
[398136606,1765397441582,-600.0,0.0004153,31]
[398136607,1765397441592,-151.0,0.0004153,31]
[398136608,1765397441602,-151.0,0.0004153,31]
[398136609,1765397441612,-500.0,0.0004153,31]
[398136610,1765397441622,-900.0,0.0004153,31]
[398136611,1765397441632,-600.0,0.0004153,31]
[398136612,1765397441643,-177.74194921,0.0004153,31]
[398136613,1765397441653,-500.0,0.0004153,31]
[398136614,1765397441662,-900.0,0.0004153,31]
[398136615,1765397441672,-151.0,0.0004153,31]
[398136616,1765397441682,-500.0,0.0004153,31]
[398136617,1765397441691,-900.0,0.0004153,31]
[398136618,1765397441701,-151.0,0.0004153,31]
[398136619,1765397441711,-151.0,0.0004153,31]
[398136620,1765397441721,-500.0,0.0004153,31]
[398136621,1765397441730,-900.0,0.0004153,31]
[398136622,1765397441739,-151.0,0.0004153,31]
[398136623,1765397441748,-500.0,0.0004153,31]
[398136624,1765397441763,-151.0,0.0004153,31]
[398136625,1765397441772,-900.0,0.0004153,31]
[398136626,1765397441782,-151.0,0.0004153,31]
[398136627,1765397441792,-500.0,0.0004153,31]
[398136628,1765397441802,-757.16958078,0.0004153,31]
[398136629,1765397441812,-151.0,0.0004153,31]
[398136630,1765397441821,-180.8155,0.0004153,31]
[398136631,1765397441830,-500.0,0.0004153,31]
[398136632,1765397441840,-151.0,0.0004153,31]
[398136633,1765397441850,-151.0,0.0004153,31]